bitfinex-derivatives/quotes_ETHF0:USTF0_20250604
["timestamp","ask_amount","ask_price","bid_price","bid_amount"]
[1749038831865,0.6531,2631.9,2631.8,0.76519613]
[1749038832566,0.6203,2632.0,2631.9,0.75946]
[1749038833465,4.698,2632.1,2632.0,0.75944]
[1749038834158,3.65203555,2632.2,2632.1,0.75941]
[1749038834357,8.35003555,2632.2,2632.0,0.75941]
[1749038834865,9.10942555,2632.2,2632.0,0.75943]
[1749038835068,8.35003555,2632.2,2632.0,0.75943]
[1749038835256,8.35003555,2632.2,2632.1,0.75941]
[1749038835660,8.55874187,2632.2,2632.1,0.75941]
[1749038835856,0.84610632,2632.2,2632.1,3.96721]
[1749038836063,0.04034632,2632.2,2632.1,3.96721]
[1749038836261,0.00570613,2632.6,2632.5,0.75929]
[1749038836463,0.00570613,2632.6,2632.5,3.96709]
[1749038837161,0.76496613,2632.6,2632.5,3.2078]
[1749038837365,0.00570613,2632.6,2632.5,3.96709]
[1749038837766,0.00570613,2632.6,2632.5,5.17339]
[1749038837960,0.00570613,2632.6,2632.5,3.96709]
[1749038839661,0.00570613,2632.6,2632.5,5.17339]
[1749038841963,6.13e-06,2632.6,2632.5,10.17339]
[1749038842160,6.13e-06,2632.6,2632.5,14.86639]
[1749038842360,6.13e-06,2632.6,2632.5,9.86639]
[1749038843262,6.13e-06,2632.6,2632.5,3.96709]
[1749038846073,6.13e-06,2632.6,2632.5,5.21849]
[1749038847469,6.13e-06,2632.6,2632.5,3.96709]
[1749038848073,0.84001308,2632.6,2632.5,3.96709]
[1749038848677,0.8402145,2632.6,2632.5,3.96709]
[1749038850076,0.8402145,2632.6,2632.5,5.26479]
[1749038850763,0.0688045,2632.6,2632.5,5.26479]
[1749038850966,0.0688045,2632.6,2632.5,10.26479]
[1749038852768,0.36910613,2632.8,2632.7,0.75923]
[1749038852967,6.13e-06,2632.8,2632.7,0.75923]
[1749038853667,5.45122613,2632.8,2632.7,0.75923]
[1749038853872,4.69200613,2632.8,2632.7,0.75923]
[1749038854275,6.10190613,2632.8,2632.7,0.75923]
[1749038854580,0.75925,2632.7,2632.6,0.75926]
[1749038854878,6.10192613,2632.8,2632.5,3.2078]
[1749038855177,1.2055,2632.7,2632.6,0.75926]
[1749038856378,0.65070613,2632.8,2632.7,0.75923]
[1749038857173,6.13e-06,2632.8,2632.7,0.75923]
[1749038859166,4.69300613,2632.8,2632.7,0.75923]
[1749038859572,6.13e-06,2632.8,2632.7,0.75923]
[1749038859873,4.69300613,2632.8,2632.7,0.75923]
[1749038860280,6.13e-06,2632.8,2632.7,0.75923]
[1749038860480,4.69300613,2632.8,2632.7,0.75923]
[1749038862773,5.53068193,2632.8,2632.7,0.75923]
[1749038863674,5.53068193,2632.8,2632.5,3.2078]
[1749038863870,2.7955358,2632.7,2632.5,3.2078]
[1749038864185,0.7594,2632.2,2631.9,3.8598]
[1749038864372,0.8376758,2632.1,2632.0,0.75944]
[1749038865281,5.45135,2632.3,2632.2,0.75938]
[1749038865481,7.54266094,2632.3,2632.2,0.75938]
[1749038865684,0.75944,2632.0,2631.9,3.2078]
[1749038865976,1.59715094,2632.0,2631.9,3.2078]
[1749038866373,0.83771094,2632.0,2631.9,3.2078]
[1749038866576,1.45661094,2632.0,2631.9,3.2078]
[1749038866774,2.71021094,2632.0,2631.9,3.96726]
[1749038867378,0.83771094,2632.0,2631.9,3.96726]
[1749038868587,4.693,2632.3,2632.2,0.75938]
[1749038868782,0.83647502,2632.3,2632.2,3.96718]
[1749038869284,2.04619051,2632.3,2632.2,3.96718]
[1749038869880,2.04619051,2632.3,2632.2,3.2078]
[1749038870385,2.80556051,2632.3,2632.1,0.7594]
[1749038870580,0.83649051,2632.2,2632.1,0.7594]
[1749038870781,2.04619051,2632.2,2632.1,0.7594]
[1749038870986,1.2097,2632.2,2632.1,0.7594]
[1749038871191,1.2097,2632.2,2632.1,3.9672]
[1749038873990,5.308,2632.4,2632.3,0.75935]
[1749038874689,6.5601,2632.4,2632.3,0.75935]
[1749038876992,5.308,2632.4,2632.3,0.75935]
[1749038877289,38.299,2632.7,2632.6,0.75926]
[1749038877290,4.693,2632.7,2632.6,0.75926]
[1749038877478,6.13e-06,2632.8,2632.7,0.75923]
[1749038878185,6.13e-06,2632.8,2632.7,1.35863]
[1749038881984,6.13e-06,2632.8,2632.7,2.65953]
[1749038883784,6.13e-06,2632.8,2632.7,7.65953]
[1749038885490,6.13e-06,2632.8,2632.7,2.65953]
[1749038885992,0.83606626,2632.8,2632.7,7.65953]
[1749038886195,4.697,2633.4,2633.3,0.75906]
[1749038886792,4.697,2633.4,2633.2,0.6547]
[1749038886793,4.697,2633.4,2633.2,0.75907]
[1749038886992,5.45605,2633.4,2633.3,0.75906]
[1749038887687,4.697,2633.4,2633.2,0.75907]
[1749038887886,5.45604,2633.4,2633.3,0.75906]
[1749038888288,4.697,2633.4,2633.3,0.75906]
[1749038888689,3.66324168,2633.6,2633.5,0.759]
[1749038888888,5.34560613,2633.6,2633.5,0.759]
[1749038889090,10.34560613,2633.6,2633.5,0.759]
[1749038889482,5.34560613,2633.6,2633.5,0.759]
[1749038891094,6.10457613,2633.6,2633.5,0.759]
[1749038891296,5.34560613,2633.6,2633.5,0.759]
[1749038892186,6.10458613,2633.6,2633.3,0.00570613]
[1749038892386,3.01463555,2633.5,2633.3,0.00570613]
[1749038892593,3.01463555,2633.4,2633.3,0.00570613]
[1749038892894,3.01463555,2633.4,2633.3,0.76476613]
[1749038893197,3.77365555,2633.5,2633.3,0.76476613]
[1749038893791,0.75903,2633.4,2633.3,0.00570613]
[1749038893995,4.42222168,2633.6,2633.4,0.75903]
[1749038894201,4.696,2633.5,2633.4,0.75903]
[1749038894405,5.455,2633.5,2633.4,0.75903]
[1749038894699,4.696,2633.5,2633.4,0.75903]
[1749038894898,5.455,2633.5,2633.3,0.76475613]
[1749038895398,8.46963555,2633.5,2633.3,0.76475613]
[1749038896500,4.696,2633.5,2633.3,0.76475613]
[1749038897001,4.696,2633.5,2633.4,0.75903]
[1749038898698,0.64860613,2633.6,2633.5,0.759]
[1749038898888,5.34460613,2633.6,2633.5,0.759]
[1749038899087,6.22243555,2633.8,2633.5,0.759]
[1749038899088,3.2078,2633.8,2633.5,0.759]
[1749038899294,3.01317985,2634.7,2633.8,1.8973]
[1749038899497,0.75841,2635.6,2633.6,60.928]
[1749038899498,3.75632174,2635.5,2634.6,5.1045]
[1749038899800,4.696,2635.6,2635.3,3.96627]
[1749038899987,0.75846,2635.4,2635.3,3.2078]
[1749038900187,1.89611,2635.5,2635.1,0.00569465]
[1749038900496,0.75851,2635.2,2635.1,0.00569465]
[1749038900693,5.45451,2635.2,2635.1,0.00569465]
[1749038901001,0.75851,2635.2,2635.1,0.00569465]
[1749038901199,4.696,2635.2,2635.1,0.00569465]
[1749038901399,5.45451,2635.2,2635.1,0.00569465]
[1749038903098,10.45451,2635.2,2635.1,0.00569465]
[1749038903501,9.695,2635.2,2635.1,0.00569465]
[1749038903996,1.2705,2635.2,2635.1,0.00569465]
[1749038904201,5.9655,2635.2,2635.1,0.00569465]
[1749038905104,5.9655,2635.2,2635.1,0.76423465]
[1749038905398,4.695,2635.3,2635.2,0.75851]
[1749038905701,4.695,2635.3,2635.2,3.96631]
[1749038905891,1.8261,2635.5,2635.4,0.75846]
[1749038906092,6.5211,2635.5,2635.4,0.75846]
[1749038906300,6.5211,2635.5,2635.3,0.75847]
[1749038906996,6.5211,2635.5,2635.4,0.75846]
[1749038907194,6.5211,2635.5,2635.3,0.75846]
[1749038907596,6.5211,2635.5,2635.4,0.75846]
[1749038908204,6.5211,2635.5,2635.2,3.2078]
[1749038908506,4.694,2635.5,2635.4,0.75846]
[1749038909109,4.694,2635.5,2635.2,3.2078]
[1749038909401,4.694,2635.5,2635.1,0.00569465]
[1749038909596,1.96478,2635.4,2635.1,3.97201465]
[1749038910295,0.75851,2635.2,2635.1,0.00569465]
[1749038910496,0.6581,2635.3,2635.1,0.00569465]
[1749038910901,1.2749,2635.2,2635.1,0.00569465]
[1749038911500,1.2749,2635.2,2635.1,3.97203465]
[1749038911906,0.6581,2635.3,2635.1,3.97203465]
[1749038911907,0.6581,2635.3,2635.2,0.75851]
[1749038912094,4.792,2635.3,2635.1,3.97201465]
[1749038912408,0.75851,2635.2,2635.1,0.00569465]
[1749038913299,4.792,2635.3,2635.1,0.00569465]
[1749038913300,5.5505,2635.3,2635.1,0.00569465]
[1749038914106,5.5505,2635.3,2635.1,0.76422465]
[1749038914303,5.5505,2635.3,2635.1,0.00569465]
[1749038914501,0.75851,2635.2,2635.1,0.00569465]
[1749038914803,5.44335972,2635.6,2635.3,0.75848]
[1749038915009,5.44335972,2635.6,2635.2,1.4017]
[1749038915205,0.75845,2635.5,2635.2,1.4017]
[1749038915804,6.73325972,2635.6,2635.2,0.6432]
[1749038916115,7.49165972,2635.6,2635.3,0.75848]
[1749038916501,7.49165972,2635.6,2635.3,0.75846]
[1749038916706,7.49165972,2635.6,2635.4,0.75846]
[1749038917008,6.73325972,2635.6,2635.4,0.75846]
[1749038917200,6.20175972,2635.6,2635.4,0.75846]
[1749038917402,5.44335972,2635.6,2635.4,0.75846]
[1749038917605,4.79475972,2635.6,2635.4,0.75846]
[1749038918001,4.79475972,2635.6,2635.4,0.75844]
[1749038918409,4.79475972,2635.6,2635.5,0.75843]
[1749038919304,4.79475972,2635.6,2635.4,3.2078]
[1749038919612,5.55316972,2635.6,2635.2,0.6432]
[1749038919812,4.79475972,2635.6,2635.4,0.75844]
[1749038920004,4.79475972,2635.6,2635.5,0.75843]
[1749038920910,4.79475972,2635.6,2635.4,3.2078]
[1749038921105,4.79475972,2635.6,2635.1,3.21349465]
[1749038921412,0.75851,2635.2,2635.1,3.21349465]
[1749038921716,4.791,2635.2,2635.1,3.21349465]
[1749038922007,5.54951,2635.2,2635.1,3.21349465]
[1749038922206,4.791,2635.2,2635.1,3.97203465]
[1749038922404,4.791,2635.2,2635.1,3.21349465]
[1749038922604,4.791,2635.2,2635.1,3.97203465]
[1749038923114,5.54951,2635.2,2635.1,3.21349465]
[1749038924209,6.20821,2635.2,2635.1,3.21349465]
[1749038926725,7.40691,2635.2,2635.1,3.21349465]
[1749038927224,10.40637605,2635.2,2635.1,3.21349465]
[1749038927527,9.64786605,2635.2,2635.1,3.21349465]
[1749038927730,9.64786605,2635.2,2635.1,3.97203465]
[1749038928024,4.791,2635.2,2635.1,3.97203465]
[1749038928325,7.79046605,2635.2,2635.1,3.97203465]
[1749038929228,4.791,2635.2,2635.1,3.97203465]
[1749038932422,3.02747143,2635.5,2635.1,3.21349465]
[1749038932625,0.7585,2635.3,2635.1,3.97202465]
[1749038933227,6.1048,2635.4,2635.1,3.97202465]
[1749038933423,0.75851,2635.2,2635.1,3.21349465]
[1749038934836,9.89074143,2635.4,2635.2,0.75851]
[1749038935030,6.86327,2635.4,2635.2,0.75851]
[1749038935528,6.1048,2635.4,2635.2,0.75851]
[1749038935735,6.1048,2635.4,2635.1,3.21349465]
[1749038935935,0.75849,2635.3,2635.1,3.97202465]
[1749038936833,6.1048,2635.4,2635.1,3.21349465]
[1749038937133,0.75851,2635.3,2635.1,3.21349465]
[1749038937535,9.13227143,2635.4,2635.1,3.21349465]
[1749038937736,0.75851,2635.2,2635.1,3.21349465]
[1749038937931,2.0015,2635.3,2635.1,3.97203465]
[1749038938130,1.243,2635.3,2635.1,3.97203465]
[1749038938339,2.0015,2635.3,2635.1,3.97202465]
[1749038939030,2.00151,2635.3,2635.1,3.97202465]
[1749038939538,0.75851,2635.2,2635.1,3.21349465]
[1749038940036,0.75851,2635.2,2635.1,0.00569465]
[1749038940840,3.78598143,2635.2,2635.1,0.00569465]
[1749038941431,0.75851,2635.2,2635.1,0.00569465]
[1749038941946,1.96721,2635.2,2635.1,0.00569465]
[1749038945244,6.2087,2635.2,2634.5,0.75871]
[1749038945434,0.75862,2634.9,2634.6,0.75868]
[1749038945634,4.718,2634.8,2634.6,0.75868]
[1749038945833,4.718,2634.8,2634.7,0.75866]
[1749038946240,4.718,2634.8,2634.6,3.96646]
[1749038946448,4.718,2634.8,2634.6,3.2078]
[1749038947138,3.02947801,2634.7,2634.6,3.2078]
[1749038947343,3.02947801,2634.7,2634.6,3.96647]
[1749038948838,3.02947801,2634.7,2634.6,3.2078]
[1749038949141,5.81945,2634.8,2634.6,3.2078]
[1749038949338,5.81945,2634.8,2634.6,3.96649]
[1749038949542,3.02931085,2634.7,2634.6,3.96649]
[1749038950147,5.81945,2634.8,2634.6,3.96649]
[1749038950441,5.0608,2634.8,2634.6,3.96649]
[1749038950642,5.81944,2634.8,2634.6,3.96649]
[1749038950834,0.75866,2634.7,2634.6,3.2078]
[1749038951037,3.02895709,2634.7,2634.6,3.2078]
[1749038951344,5.81944,2634.8,2634.6,3.96647]
[1749038952247,8.84870147,2634.8,2634.6,3.2078]
[1749038952444,0.75866,2634.7,2634.6,3.2078]
[1749038952640,8.84871147,2634.8,2634.6,3.2078]
[1749038952944,8.84871147,2634.8,2634.6,3.96648]
[1749038953645,8.84870147,2634.8,2634.6,3.96647]
[1749038953942,8.84870147,2634.8,2634.6,3.96648]
[1749038954138,0.75866,2634.7,2634.6,3.2078]
[1749038954447,0.75869,2634.6,2634.5,0.00569465]
[1749038954647,3.02793564,2634.6,2634.5,0.00569465]
[1749038954845,0.75869,2634.6,2634.5,0.00569465]
[1749038959850,4.718,2634.6,2634.5,0.76440465]
[1749038960448,5.0608,2634.8,2634.7,0.75866]
[1749038960846,5.12811476,2634.8,2634.7,0.75866]
[1749038961048,5.12811476,2634.8,2634.7,1.38686]
[1749038961350,5.88674476,2634.8,2634.7,0.6282]
[1749038961949,5.81943,2634.8,2634.7,0.6282]
[1749038962748,0.75866,2634.7,2634.6,3.2078]
[1749038962951,0.75869,2634.6,2634.5,0.00569465]
[1749038965055,2.08629,2634.6,2634.5,0.00569465]
[1749038969357,8.32202564,2634.6,2634.5,0.00569465]
[1749038969556,5.29409,2634.6,2634.5,0.00569465]
[1749038970362,0.75886,2634.0,2633.9,3.2078]
[1749038970551,5.47686,2634.0,2633.9,3.2078]
[1749038971253,4.718,2634.0,2633.9,3.96669]
[1749038973359,4.7240769,2634.0,2633.9,3.96669]
[1749038973954,0.0060769,2634.0,2633.9,3.96669]
[1749038974159,4.7000769,2634.0,2633.9,5.18549]
[1749038975758,0.0060769,2634.0,2633.9,5.18549]
[1749038976854,0.0060769,2634.0,2633.9,10.18549]
[1749038977461,0.0060769,2634.0,2633.9,5.18549]
[1749038978461,0.0060769,2634.0,2633.9,10.18549]
[1749038984165,0.3304769,2634.0,2633.9,10.18549]
[1749038987363,0.39779166,2634.0,2633.9,10.18549]
[1749038993384,0.39779166,2634.0,2633.9,5.18549]
[1749038997400,0.39779166,2634.0,2633.9,3.96669]
[1749039000500,0.3304769,2634.0,2633.9,3.96669]
[1749039003493,0.39779166,2634.0,2633.9,3.96669]
[1749039005596,0.3304769,2634.0,2633.9,8.65669]
[1749039006505,0.3304769,2634.0,2633.9,13.65669]
[1749039006802,6.9e-06,2634.0,2633.9,13.65669]
[1749039008605,1.66e-06,2634.0,2633.9,13.65669]
[1749039012507,6.31e-06,2634.2,2634.1,0.75883]
[1749039013202,1.2901,2634.9,2634.8,0.75863]
[1749039013407,1.2901,2634.9,2634.8,3.96643]
[1749039013803,7.71888169,2635.7,2635.6,0.7584]
[1749039014006,5.3276,2635.7,2635.6,0.7584]
[1749039014203,0.6386,2635.7,2635.6,0.7584]
[1749039014402,1.39697,2635.7,2635.6,0.7584]
[1749039014595,0.6386,2635.7,2635.6,0.7584]
[1749039016403,0.75843,2635.5,2635.4,0.00569465]
[1749039016603,0.75851,2635.2,2635.1,3.2078]
[1749039017205,0.75851,2635.2,2635.1,3.96634]
[1749039017404,2.05467,2635.4,2635.2,0.7585]
[1749039017910,7.05467,2635.4,2635.2,0.7585]
[1749039018615,6.2962,2635.4,2635.3,0.75848]
[1749039018914,1.2962,2635.4,2635.3,0.75848]
[1749039019107,6.2962,2635.4,2635.3,0.75848]
[1749039019912,6.939,2635.4,2635.3,0.75848]
[1749039020414,1.939,2635.4,2635.3,0.75848]
[1749039024314,1.939,2635.4,2635.1,3.2078]
[1749039024523,0.06731476,2635.5,2635.4,0.75845]
[1749039024819,0.06731476,2635.5,2635.4,3.96625]
[1749039030821,4.76e-06,2635.5,2635.4,3.96625]
[1749039031327,4.76e-06,2635.5,2635.4,8.96625]
[1749039032129,4.76e-06,2635.5,2635.4,10.92985]
[1749039034230,5.346,2636.4,2636.3,0.7582]
[1749039034423,5.346,2636.4,2636.3,3.966]
[1749039035723,6.10417,2636.4,2636.3,3.2078]
[1749039035920,7.34187,2636.4,2636.3,3.966]
[1749039036123,7.34187,2636.4,2636.3,3.2078]
[1749039036323,7.34187,2636.4,2636.0,1.8957]
[1749039036324,0.75825,2636.1,2636.0,3.2078]
[1749039036528,3.02988169,2636.3,2636.0,3.96606]
[1749039036733,1.2377,2636.2,2636.1,0.75825]
[1749039036929,5.9337,2636.2,2636.1,0.75825]
[1749039038123,1.2377,2636.2,2636.1,0.75825]
[1749039038320,5.9337,2636.2,2636.1,0.75825]
[1749039038832,1.2377,2636.2,2636.1,0.75825]
[1749039039132,5.9337,2636.2,2636.1,0.75825]
[1749039040225,4.696,2636.2,2636.1,0.75825]
[1749039040530,0.658,2636.4,2636.3,0.7582]
[1749039041423,0.658,2636.4,2636.2,0.75821]
[1749039041628,1.3081,2636.3,2636.2,0.75821]
[1749039042631,0.658,2636.4,2636.3,0.7582]
[1749039044235,0.658,2636.4,2636.3,3.966]
[1749039044435,5.354,2636.4,2636.3,3.966]
[1749039045132,19.60594,2637.1,2636.3,3.966]
[1749039045133,1.0311318,2637.8,2636.3,68.9258]
[1749039045336,0.6379,2638.0,2637.9,0.75774]
[1749039045530,0.6379,2638.0,2637.9,3.96554]
[1749039045727,3.2078,2639.2,2638.1,1.8942]
[1749039045926,1.9455,2638.9,2638.8,0.75748]
[1749039046135,1.9455,2638.9,2638.6,3.21349465]
[1749039046525,1.9455,2638.9,2638.6,3.97101465]
[1749039046728,1.9455,2638.9,2638.6,3.97102465]
[1749039047235,0.00375972,2639.1,2638.8,0.75747]
[1749039047435,0.75747,2638.9,2638.6,3.21349465]
[1749039047641,3.2078,2639.0,2638.6,3.21349465]
[1749039047642,2.02378,2638.8,2638.6,3.21349465]
[1749039047831,1.8752,2638.8,2638.6,3.21349465]
[1749039048033,6.8752,2638.8,2638.6,3.21349465]
[1749039048234,6.8752,2638.8,2638.6,0.00569465]
[1749039048437,0.75751,2638.7,2638.6,0.00569465]
[1749039048629,2.02381,2638.7,2638.6,0.00569465]
[1749039048829,11.71881,2638.7,2638.6,0.00569465]
[1749039052436,6.71881,2638.7,2638.6,0.00569465]
[1749039053139,9.92661,2638.7,2638.6,0.00569465]
[1749039053437,0.75762,2638.3,2638.2,3.2078]
[1749039053642,4.693,2638.3,2638.2,3.2078]
[1749039054034,4.4741,2638.7,2638.2,3.96545]
[1749039054335,0.75762,2638.3,2638.2,3.2078]
[1749039054535,0.75762,2638.3,2638.2,3.21349465]
[1749039054730,2.67022,2638.3,2638.2,3.21349465]
[1749039057047,2.67022,2638.3,2638.2,0.00569465]
[1749039057345,0.75771,2638.0,2637.9,3.2078]
[1749039057542,4.693,2638.0,2637.9,3.96554]
[1749039057939,4.693,2638.1,2638.0,0.75771]
[1749039058449,5.29974261,2638.3,2638.2,0.75765]
[1749039059043,5.29974261,2638.3,2638.2,3.96545]
[1749039059444,0.75768,2638.2,2637.9,3.2078]
[1749039059649,0.75768,2638.1,2637.9,3.96552]
[1749039060039,2.04927,2638.2,2638.0,0.75771]
[1749039060348,0.60674261,2638.3,2637.9,3.2078]
[1749039060535,0.60674261,2638.3,2638.2,0.75765]
[1749039060740,0.60674261,2638.3,2638.1,0.75768]
[1749039060942,0.75766,2638.2,2637.9,3.2078]
[1749039061260,0.75769,2638.1,2637.9,3.2078]
[1749039061444,0.7577,2638.1,2637.9,3.2078]
[1749039061644,1.89834261,2638.3,2637.9,3.2078]
[1749039061950,0.75769,2638.1,2637.8,0.00569465]
[1749039062148,0.75769,2638.1,2637.9,3.2078]
[1749039062345,4.693,2638.2,2637.9,3.2078]
[1749039062653,5.45067,2638.2,2637.9,3.2078]
[1749039063043,0.75768,2638.1,2637.9,3.2078]
[1749039063243,4.693,2638.2,2637.9,3.2078]
[1749039063244,4.693,2638.2,2637.9,3.96553]
[1749039063442,0.75767,2638.2,2637.9,3.96553]
[1749039063651,4.693,2638.1,2637.9,3.96552]
[1749039064042,4.693,2638.1,2637.9,3.2078]
[1749039064239,0.75771,2638.0,2637.9,3.2078]
[1749039064949,2.04741,2638.0,2637.9,3.2078]
[1749039066045,0.75771,2638.0,2637.9,3.2078]
[1749039069461,5.51801476,2638.1,2637.9,3.2078]
[1749039069861,0.75771,2638.0,2637.9,3.2078]
[1749039070061,5.51801476,2638.1,2637.9,3.2078]
[1749039070261,4.76031476,2638.1,2637.9,3.2078]
[1749039070957,0.75771,2638.0,2637.9,3.2078]
[1749039071161,4.784,2638.0,2637.9,3.96553]
[1749039071962,0.06731476,2638.1,2638.0,0.75771]
[1749039072162,0.82499476,2638.1,2638.0,0.75771]
[1749039072360,4.85131476,2638.1,2638.0,0.75771]
[1749039072657,4.85131476,2638.1,2638.0,1.41021]
[1749039072855,0.06731476,2638.1,2638.0,3.26291]
[1749039074266,0.75771,2638.0,2637.9,3.2078]
[1749039074657,0.82501476,2638.1,2637.9,3.96553]
[1749039074852,0.06731476,2638.1,2637.9,3.2078]
[1749039075165,0.82499476,2638.1,2638.0,0.75771]
[1749039075358,0.82499476,2638.1,2637.9,5.16713]
[1749039075359,0.82501476,2638.1,2637.9,5.16713]
[1749039075551,0.06731476,2638.1,2637.9,5.16713]
[1749039075755,0.82501476,2638.1,2637.9,4.4094]
[1749039075956,0.82501476,2638.1,2637.9,3.2078]
[1749039075957,0.06731476,2638.1,2637.9,3.2078]
[1749039076159,0.82500476,2638.1,2637.9,3.2078]
[1749039076464,0.75771,2638.0,2637.9,3.2078]
[1749039076666,0.06731476,2638.1,2637.8,0.00569465]
[1749039076856,0.06731476,2638.1,2637.9,0.75772]
[1749039077161,0.75771,2638.0,2637.9,0.75773]
[1749039077362,0.75773,2637.9,2637.8,1.20729465]
[1749039077658,0.75773,2637.9,2637.8,0.00569465]
[1749039079461,0.06731476,2638.1,2637.9,0.75772]
[1749039079760,5.54171,2638.0,2637.8,0.76343465]
[1749039080062,5.54171,2638.0,2637.8,0.76342465]
[1749039080461,0.06731476,2638.1,2637.8,0.00569465]
[1749039080661,5.60900476,2638.1,2637.9,3.96553]
[1749039080963,5.60901476,2638.1,2637.9,5.21413]
[1749039081153,0.06731476,2638.1,2638.0,0.75771]
[1749039081359,0.75771,2638.0,2637.9,4.4564]
[1749039081561,0.75771,2638.0,2637.9,3.2078]
[1749039082367,3.75268688,2638.0,2637.9,3.2078]
[1749039082768,1.35581,2638.0,2637.9,3.2078]
[1749039082967,1.96721,2638.0,2637.9,3.2078]
[1749039085476,3.25721,2638.0,2637.9,3.2078]
[1749039088866,1.96721,2638.0,2637.9,3.2078]
[1749039091076,0.75771,2638.0,2637.9,3.2078]
[1749039093469,4.784,2638.0,2637.9,3.96553]
[1749039093670,4.784,2638.0,2637.9,5.21393]
[1749039094071,5.54171,2638.0,2637.9,5.21393]
[1749039094673,0.75771,2638.0,2637.9,5.21393]
[1749039094873,5.47171,2638.0,2637.9,4.4562]
[1749039095074,4.714,2638.0,2637.9,5.21393]
[1749039095274,5.47171,2638.0,2637.9,5.21393]
[1749039095581,5.47171,2638.0,2637.9,4.4562]
[1749039095972,0.82502476,2638.0,2637.9,4.4562]
[1749039096278,3.09836814,2638.0,2637.9,5.21393]
[1749039098081,3.85607814,2638.0,2637.9,5.21393]
[1749039098283,3.09836814,2638.0,2637.9,4.4562]
[1749039098584,3.09836814,2638.0,2637.9,5.21393]
[1749039098884,0.06731476,2638.0,2637.9,5.21393]
[1749039101493,0.82502476,2638.0,2637.9,5.21393]
[1749039101677,0.06731476,2638.0,2637.9,5.21393]
[1749039104384,0.82502476,2638.0,2637.9,5.21393]
[1749039105085,0.06731476,2638.0,2637.9,5.21393]
[1749039105292,0.82502476,2638.0,2637.9,3.2078]
[1749039105889,0.75773,2637.9,2637.8,0.00569465]
[1749039106088,0.75773,2637.9,2637.8,3.21349465]
[1749039106286,3.78878338,2637.9,2637.8,0.00569465]
[1749039111199,3.85609814,2637.9,2637.8,0.00569465]
[1749039111800,3.85609814,2637.9,2637.8,0.76345465]
[1749039112002,3.09836814,2637.9,2637.8,0.76345465]
[1749039112207,0.06731476,2637.9,2637.8,3.97125465]
[1749039116902,0.82504476,2637.9,2637.8,3.21349465]
[1749039117609,0.82504476,2637.9,2637.8,3.97125465]
[1749039118008,0.82504476,2637.9,2637.8,3.21349465]
[1749039118304,0.82504476,2637.9,2637.8,0.00569465]
[1749039122011,0.06731476,2637.9,2637.8,0.76345465]
[1749039122205,4.78131476,2637.9,2637.8,3.97125465]
[1749039124109,4.78131476,2637.9,2637.8,3.21349465]
[1749039124404,4.78131476,2637.9,2637.8,3.97125465]
[1749039125311,5.53904476,2637.9,2637.8,3.97125465]
[1749039125511,5.53904476,2637.9,2637.8,0.00569465]
[1749039125712,4.78131476,2637.9,2637.8,0.76345465]
[1749039127512,5.53904476,2637.9,2637.8,0.00569465]
[1749039127711,4.78131476,2637.9,2637.8,0.00569465]
[1749039128018,0.06731476,2637.9,2637.8,0.76345465]
[1749039128909,4.75631476,2637.9,2637.8,0.76345465]
[1749039129311,3.09581782,2637.9,2637.8,3.97125465]
[1749039129512,0.06731476,2637.9,2637.8,3.97125465]
[1749039129713,3.09592548,2637.9,2637.8,3.97125465]
[1749039130815,3.09612219,2637.9,2637.8,3.97125465]
[1749039131612,0.06731476,2637.9,2637.8,3.97125465]
[1749039131909,3.09645751,2637.9,2637.8,3.97125465]
[1749039132217,3.09645693,2637.9,2637.8,3.97125465]
[1749039132415,0.06731476,2637.9,2637.8,3.97125465]
[1749039132810,0.07470104,2637.9,2637.8,3.97125465]
[1749039133417,3.10384321,2637.9,2637.8,3.97125465]
[1749039134117,0.07470104,2637.9,2637.8,3.97125465]
[1749039134313,3.10384321,2637.9,2637.8,3.97125465]
[1749039137322,3.10384321,2637.9,2637.8,0.00569465]
[1749039137616,0.07470104,2637.9,2637.8,0.76345465]
[1749039139015,0.07470104,2637.9,2637.8,3.97125465]
[1749039142926,0.72840104,2637.9,2637.8,3.97125465]
[1749039143130,1.93120104,2637.9,2637.8,3.21349465]
[1749039143328,1.93120104,2637.9,2637.8,3.97125465]
[1749039143528,0.72840104,2637.9,2637.8,3.97125465]
[1749039144523,0.07470104,2637.9,2637.8,3.97125465]
[1749039146230,0.07470104,2637.9,2637.8,0.76345465]
[1749039149930,3.10680968,2637.9,2637.8,0.76345465]
[1749039150230,3.10681267,2637.9,2637.8,0.76345465]
[1749039150724,7.79580526,2637.9,2637.8,3.97125465]
[1749039151525,3.10680526,2637.9,2637.8,3.97125465]
[1749039151722,0.07470104,2637.9,2637.8,3.97125465]
[1749039170636,3.10680526,2637.9,2637.8,3.97125465]
[1749039170835,0.07470104,2637.9,2637.8,3.97125465]
[1749039172436,7.79076519,2637.9,2637.8,3.97125465]
[1749039177143,3.10576519,2637.9,2637.8,3.97125465]
[1749039182348,0.07470104,2637.9,2637.8,3.97125465]
[1749039191643,1.04e-06,2637.9,2637.8,8.97125465]
[1749039191853,6.64013,2639.0,2637.8,8.21349465]
[1749039192049,6.64013,2639.0,2638.9,0.75745]
[1749039193748,5.8827,2639.0,2638.9,0.75745]
[1749039194550,5.8817,2639.0,2638.9,0.75745]
[1749039195149,4.677,2639.0,2638.9,0.75745]
[1749039196242,4.677,2639.0,2638.7,0.6468]
[1749039196450,4.677,2639.0,2638.9,0.75745]
[1749039196950,4.677,2639.0,2638.7,0.6468]
[1749039197159,0.7575,2638.7,2638.6,3.2078]
[1749039197343,6.38463,2638.9,2638.3,3.2078]
[1749039197545,0.00375972,2639.1,2639.0,0.75742]
[1749039198058,0.00375972,2639.1,2639.0,5.75742]
[1749039198352,0.00375972,2639.1,2639.0,2.07522]
[1749039199054,0.00375972,2639.1,2639.0,0.75742]
[1749039201853,0.00375972,2639.1,2639.0,1.99082]
[1749039202556,0.00375972,2639.1,2639.0,6.99082]
[1749039204357,0.6279,2640.2,2639.0,1.2334]
[1749039204552,0.6279,2640.2,2640.0,3.2078]